fUST/lending_fUST_20250214
["ID","MTS","AMOUNT","RATE_DAILY","PERIOD"]
[353084210,1739545850640,-500.0,0.00013698,2]
[353084212,1739545850650,-354.34902413,0.00013698,2]
[353084214,1739545850659,-368.5386958,0.00013698,2]
[353084777,1739545898597,342.2543,0.00019,120]
[353084780,1739546220743,49014.1434289,0.00018,30]
[353084839,1739547032220,-160.430683,0.00010685,2]
[353084841,1739547032230,-7438.69753278,0.00012346,2]
[353084843,1739547032240,-1000.0,0.00013068,2]
[353084845,1739547032250,-479.33826924,0.00013494,2]
[353084847,1739547032260,-300.0,0.00013499,2]
[353084849,1739547032271,-3737.52954178,0.000135,2]
[353084851,1739547032281,-495.60495355,0.00013598,2]
[353084853,1739547032291,-3000.0,0.00013598,2]
[353084855,1739547032301,-19830.073975,0.0001369,2]
[353084857,1739547032310,-500.0,0.00013698,2]
[353084859,1739547032320,-500.0,0.00013698,2]
[353084861,1739547032329,-433.49874262,0.00013698,2]
[353084862,1739547032340,-514.05433313,0.00013698,2]
[353084864,1739547032350,-500.0,0.00013698,2]
[353084866,1739547032359,-500.0,0.00013698,2]
[353084867,1739547032370,-604.31766378,0.00013698,2]
[353084869,1739547032380,-500.0,0.00013698,2]
[353084871,1739547032389,-500.0,0.00013698,2]
[353084873,1739547032399,-500.0,0.00013698,2]
[353084875,1739547032414,-500.0,0.00013698,2]
[353084877,1739547032425,-500.0,0.00013698,2]
[353084878,1739547032434,-500.0,0.00013698,2]
[353084879,1739547032444,-500.0,0.00013698,2]
[353084881,1739547032454,-500.0,0.00013698,2]
[353084882,1739547032463,-500.0,0.00013698,2]
[353084884,1739547032482,-355.89651006,0.00013698,2]
[353084886,1739547032497,-509.35374891,0.00013698,2]
[353084887,1739547032509,-500.0,0.00013698,2]
[353084888,1739547032519,-502.04530904,0.00013698,2]
[353084890,1739547032528,-547.87103451,0.00013698,2]
[353084892,1739547032538,-500.0,0.00013698,2]
[353084893,1739547032547,-500.0,0.00013698,2]
[353084894,1739547032557,-500.0,0.00013698,2]
[353084895,1739547032566,-561.45263906,0.00013698,2]
[353084897,1739547032576,-502.61325206,0.00013698,2]
[353084898,1739547032585,-500.0,0.00013698,2]
[353084899,1739547032595,-500.0,0.00013698,2]
[353084900,1739547032604,-505.8652231,0.00013698,2]
[353084901,1739547032614,-500.0,0.00013698,2]
[353084902,1739547032623,-641.92,0.00013698,2]
[353084903,1739547032633,-503.74861346,0.00013698,2]
[353084904,1739547032642,-489.72255846,0.00013698,2]
[353084905,1739547032652,-500.0,0.00013698,2]
[353084906,1739547032661,-500.0,0.00013698,2]
[353084907,1739547032671,-500.0,0.00013698,2]
[353084908,1739547032680,-515.65214503,0.00013698,2]
[353084909,1739547032690,-500.0,0.00013698,2]
[353084910,1739547032699,-500.0,0.00013698,2]
[353084911,1739547032709,-486.87532857,0.00013698,2]
[353084912,1739547032719,-501.83873759,0.00013698,2]
[353084913,1739547032728,-271.0707789,0.00013698,2]
[353084914,1739547032738,-386.63,0.00013698,2]
[353084915,1739547032747,-500.0,0.00013698,2]
[353084916,1739547032756,-506.23186168,0.00013698,2]
[353084917,1739547032765,-500.0,0.00013698,2]
[353084918,1739547032775,-500.0,0.00013698,2]
[353084919,1739547032785,-503.5461631,0.00013698,2]
[353084920,1739547032795,-500.0,0.00013698,2]
[353084921,1739547032806,-500.0,0.00013698,2]
[353084922,1739547032815,-500.0,0.00013698,2]
[353084923,1739547032957,-500.0,0.00013698,2]
[353084924,1739547032968,-500.0,0.00013698,2]
[353084925,1739547032977,-500.0,0.00013698,2]
[353084926,1739547032987,-376.92062016,0.00013698,2]
[353084927,1739547032997,-298.05208723,0.00013698,2]
[353084928,1739547033006,-500.0,0.00013698,2]
[353084929,1739547033016,-502.07637382,0.00013698,2]
[353084930,1739547033026,-500.0,0.00013698,2]
[353084931,1739547033036,-500.0,0.00013698,2]
[353084932,1739547033046,-666.01,0.00013698,2]
[353084933,1739547033060,-500.95525024,0.00013698,2]
[353084934,1739547033069,-500.50899827,0.00013698,2]
[353084935,1739547033079,-500.0,0.00013698,2]
[353084936,1739547033088,-500.0,0.00013698,2]
[353084937,1739547033098,-500.0,0.00013698,2]
[353084938,1739547033107,-500.0,0.00013698,2]
[353084939,1739547033117,-500.0,0.00013698,2]
[353084940,1739547033126,-500.0,0.00013698,2]
[353084941,1739547033136,-500.0,0.00013698,2]
[353084942,1739547033146,-500.0,0.00013698,2]
[353084943,1739547033156,-597.20121801,0.00013698,2]
[353084944,1739547033165,-500.0,0.00013698,2]
[353084945,1739547033175,-860.7,0.00013698,2]
[353084946,1739547033185,-500.0,0.00013698,2]
[353084947,1739547033194,-500.0,0.00013698,2]
[353084948,1739547033204,-500.0,0.00013698,2]
[353084949,1739547033214,-500.0,0.00013698,2]
[353084950,1739547033223,-500.0,0.00013698,2]
[353084951,1739547033234,-500.0,0.00013698,2]
[353084952,1739547033244,-500.0,0.00013698,2]
[353084953,1739547033253,-500.0,0.00013698,2]
[353084954,1739547033263,-1374.05,0.00013698,2]
[353084955,1739547033272,-500.0,0.00013698,2]
[353084956,1739547033283,-1662.72,0.00013698,2]
[353084957,1739547033292,-500.0,0.00013698,2]
[353084958,1739547033302,-534.28,0.00013698,2]
[353084959,1739547033312,-500.0,0.00013698,2]
[353084960,1739547033321,-500.0,0.00013698,2]
[353084961,1739547033331,-500.0,0.00013698,2]
[353084962,1739547033341,-1150.26,0.00013698,2]
[353084963,1739547033351,-500.0,0.00013698,2]
[353084964,1739547033360,-504.07688115,0.00013698,2]
[353084965,1739547033370,-500.0,0.00013698,2]
[353084966,1739547033380,-500.0,0.00013698,2]
[353084967,1739547033390,-506.0839322,0.00013698,2]
[353084968,1739547033399,-410.5702925,0.00013698,2]
[353084969,1739547033409,-1488.22,0.00013698,2]
[353084970,1739547033419,-500.0,0.00013698,2]
[353084971,1739547033429,-535.17,0.00013698,2]
[353084972,1739547033439,-500.0,0.00013698,2]
[353084973,1739547033449,-500.0,0.00013698,2]
[353084974,1739547033459,-566.89,0.00013698,2]
[353084975,1739547033470,-500.0,0.00013698,2]
[353084976,1739547033480,-500.0,0.00013698,2]
[353084977,1739547033490,-500.0,0.00013698,2]
[353084978,1739547033500,-500.0,0.00013698,2]
[353084979,1739547033510,-500.0,0.00013698,2]
[353084980,1739547033519,-501.9928747,0.00013698,2]
[353084981,1739547033528,-500.0,0.00013698,2]
[353084982,1739547033538,-1110.03,0.00013698,2]
[353084983,1739547033547,-500.0,0.00013698,2]
[353084984,1739547033557,-500.0,0.00013698,2]
[353084985,1739547033566,-503.07941548,0.00013698,2]
[353084986,1739547033576,-500.0,0.00013698,2]
[353084987,1739547033586,-500.0,0.00013698,2]
[353084988,1739547033595,-500.0,0.00013698,2]
[353084989,1739547033605,-500.0,0.00013698,2]
[353084990,1739547033614,-500.0,0.00013698,2]
[353084991,1739547033624,-500.0,0.00013698,2]
[353084992,1739547033633,-259.8566846,0.00013698,2]
[353084993,1739547033643,-504.15662806,0.00013698,2]
[353084994,1739547033652,-500.0,0.00013698,2]
[353084995,1739547033662,-503.89828001,0.00013698,2]
[353084996,1739547033672,-288.91763651,0.00013698,2]
[353084997,1739547033682,-582.36,0.00013698,2]
[353084998,1739547033692,-500.0,0.00013698,2]
[353084999,1739547033702,-500.0,0.00013698,2]
[353085000,1739547033712,-2520.87,0.00013698,2]
[353085001,1739547033723,-423.1100184,0.00013698,2]
[353085023,1739547037907,-76.8899816,0.00013698,2]
[353085025,1739547037922,-500.0,0.00013698,2]
[353085027,1739547037936,-99.97843305,0.00013698,2]
[353085030,1739547037951,-1171.36156695,0.00013698,2]
[353085032,1739547037964,-500.0,0.00013698,2]
[353085034,1739547037979,-500.0,0.00013698,2]
[353085037,1739547037992,-515.09,0.00013698,2]
[353085039,1739547038006,-1289.18,0.00013698,2]
[353085041,1739547038019,-500.0,0.00013698,2]
[353085044,1739547038034,-1005.03107488,0.00013698,2]
[353085048,1739547038051,-2436.06892512,0.00013698,2]
[353085050,1739547038067,-500.0,0.00013698,2]
[353085054,1739547038083,-500.0,0.00013698,2]
[353085056,1739547038098,-500.0,0.00013698,2]
[353085058,1739547038109,-500.0,0.00013698,2]
[353085061,1739547038120,-6725.15,0.00013698,2]
[353085063,1739547038132,-190.05980403,0.00013698,2]
[353085065,1739547038144,-246.0496229,0.00013698,2]
[353085068,1739547038158,-571.08,0.00013698,2]
[353085070,1739547038173,-11760.87,0.00013698,2]
[353085072,1739547038188,-500.0,0.00013698,2]
[353085075,1739547038199,-500.0,0.00013698,2]
[353085077,1739547038210,-500.0,0.00013698,2]
[353085079,1739547038224,-509.81387919,0.00013698,2]
[353085081,1739547038236,-500.0,0.00013698,2]
[353085083,1739547038250,-500.0,0.00013698,2]
[353085085,1739547038261,-510.68602465,0.00013698,2]
[353085088,1739547038273,-1123.46,0.00013698,2]
[353085090,1739547038285,-500.0,0.00013698,2]
[353085092,1739547038299,-639.53,0.00013698,2]
[353085094,1739547038311,-500.0,0.00013698,2]
[353085097,1739547038323,-2123.39,0.00013698,2]
[353085099,1739547038336,-500.0,0.00013698,2]
[353085101,1739547038348,-3364.48,0.00013698,2]
[353085103,1739547038362,-1029.82,0.00013698,2]
[353085106,1739547038375,-1000.0,0.00013698,2]
[353085108,1739547038388,-500.0,0.00013698,2]
[353085110,1739547038400,-1132.28,0.00013698,2]
[353085112,1739547038412,-1533.97,0.00013698,2]
[353085114,1739547038425,-500.0,0.00013698,2]
[353085117,1739547038436,-500.0,0.00013698,2]
[353085119,1739547038448,-501.80990277,0.00013698,2]
[353085121,1739547038460,-500.0,0.00013698,2]
[353085123,1739547038472,-500.0,0.00013698,2]
[353085126,1739547038485,-500.0,0.00013698,2]
[353085128,1739547038498,-503.70163895,0.00013698,2]
[353085130,1739547038511,-1779.8,0.00013698,2]
[353085132,1739547038524,-503.34223926,0.00013698,2]
[353085134,1739547038536,-500.0,0.00013698,2]
[353085135,1739547038549,-500.0,0.00013698,2]
[353085136,1739547038561,-500.0,0.00013698,2]
[353085137,1739547038574,-768.46,0.00013698,2]
[353085138,1739547038586,-37951.69,0.00013698,2]
[353085139,1739547038598,-500.0,0.00013698,2]
[353085140,1739547038611,-500.0,0.00013698,2]
[353085141,1739547038623,-500.0,0.00013698,2]
[353085142,1739547038635,-525.38353301,0.00013698,2]
[353085143,1739547038648,-4593.17,0.00013698,2]
[353085144,1739547038660,-500.0,0.00013698,2]
[353085145,1739547038672,-500.0,0.00013698,2]
[353085146,1739547038685,-16492.05,0.00013698,2]
[353085147,1739547038698,-1175.16,0.00013698,2]
[353085148,1739547038711,-500.0,0.00013698,2]
[353085149,1739547038725,-500.0,0.00013698,2]
[353085150,1739547038739,-1897.12,0.00013698,2]
[353085151,1739547038752,-500.0,0.00013698,2]
[353085153,1739547038764,-500.0,0.00013698,2]
[353085155,1739547038777,-500.0,0.00013698,2]
[353085157,1739547038789,-183.62,0.00013698,2]
[353085160,1739547038802,-500.0,0.00013698,2]
[353085162,1739547038815,-500.0,0.00013698,2]
[353085164,1739547038827,-500.0,0.00013698,2]
[353085166,1739547038840,-500.0,0.00013698,2]
[353085169,1739547038852,-500.0,0.00013698,2]
[353085171,1739547038865,-500.0,0.00013698,2]
[353085173,1739547038881,-500.0,0.00013698,2]
[353085176,1739547038894,-500.0,0.00013698,2]
[353085178,1739547038907,-367.09,0.00013698,2]
[353085180,1739547038920,-500.0,0.00013698,2]
[353085182,1739547038931,-1913.66,0.00013698,2]
[353085184,1739547038941,-1227.12,0.00013698,2]
[353085186,1739547038952,-1733.52,0.00013698,2]
[353085188,1739547038963,-500.0,0.00013698,2]
[353085190,1739547038974,-500.0,0.00013698,2]
[353085192,1739547038984,-500.0,0.00013698,2]
[353085194,1739547038995,-500.0,0.00013698,2]
[353085196,1739547039005,-503.57087519,0.00013698,2]
[353085198,1739547039014,-500.0,0.00013698,2]
[353085219,1739547039208,-500.0,0.00013698,2]
[353085222,1739547039224,-500.0,0.00013698,2]
[353085224,1739547039234,-500.0,0.00013698,2]
[353085226,1739547039244,-500.0,0.00013698,2]
[353085228,1739547039253,-500.0,0.00013698,2]
[353085230,1739547039263,-500.0,0.00013698,2]
[353085232,1739547039273,-500.0,0.00013698,2]
[353085234,1739547039283,-500.0,0.00013698,2]
[353085236,1739547039293,-500.0,0.00013698,2]
[353085238,1739547039303,-500.0,0.00013698,2]
[353085240,1739547039312,-610.48,0.00013698,2]
[353085242,1739547039322,-500.0,0.00013698,2]
[353085244,1739547039332,-501.14780937,0.00013698,2]
[353085246,1739547039341,-500.0,0.00013698,2]
[353085248,1739547039351,-500.0,0.00013698,2]
[353085250,1739547039360,-571.85,0.00013698,2]
[353085252,1739547039369,-500.0,0.00013698,2]
[353085254,1739547039380,-262.66571303,0.00013698,2]
[353085256,1739547039389,-500.0,0.00013698,2]
[353085258,1739547039399,-1434.15,0.00013698,2]
[353085260,1739547039409,-500.0,0.00013698,2]
[353085262,1739547039418,-500.0,0.00013698,2]
[353085264,1739547039428,-689.22,0.00013698,2]
[353085266,1739547039437,-503.45658692,0.00013698,2]
[353085268,1739547039447,-3407.35,0.00013698,2]
[353085270,1739547039458,-3182.03,0.00013698,2]
[353085272,1739547039468,-603.68,0.00013698,2]
[353085274,1739547039478,-580.63,0.00013698,2]
[353085276,1739547039488,-500.0,0.00013698,2]
[353085278,1739547039497,-1683.47,0.00013698,2]
[353085280,1739547039506,-7334.04,0.00013698,2]
[353085282,1739547039515,-500.0,0.00013698,2]
[353085284,1739547039524,-500.0,0.00013698,2]
[353085286,1739547039534,-500.0,0.00013698,2]
[353085288,1739547039543,-501.56649725,0.00013698,2]
[353085290,1739547039553,-1636.56,0.00013698,2]
[353085292,1739547039563,-500.0,0.00013698,2]
[353085294,1739547039572,-500.0,0.00013698,2]
[353085296,1739547039581,-500.0,0.00013698,2]
[353085298,1739547039592,-3337.46,0.00013698,2]
[353085300,1739547039601,-500.0,0.00013698,2]
[353085302,1739547039611,-500.0,0.00013698,2]
[353085304,1739547039620,-602.8,0.00013698,2]
[353085306,1739547039630,-503.07482528,0.00013698,2]
[353085308,1739547039640,-502.11434103,0.00013698,2]
[353085310,1739547039649,-500.0,0.00013698,2]
[353085312,1739547039658,-500.0,0.00013698,2]
[353085314,1739547039668,-3964.67,0.00013698,2]
[353085316,1739547039678,-500.0,0.00013698,2]
[353085318,1739547039687,-500.0,0.00013698,2]
[353085320,1739547039697,-500.0,0.00013698,2]
[353085322,1739547039707,-500.0,0.00013698,2]
[353085324,1739547039716,-246.39210696,0.00013698,2]
[353085326,1739547039727,-501.69299135,0.00013698,2]
[353085328,1739547039737,-810.1,0.00013698,2]
[353085330,1739547039746,-500.0,0.00013698,2]
[353085332,1739547039755,-500.0,0.00013698,2]
[353085334,1739547039765,-500.0,0.00013698,2]
[353085336,1739547039774,-2681.18,0.00013698,2]
[353085338,1739547039783,-500.0,0.00013698,2]
[353085340,1739547039792,-749.55,0.00013698,2]
[353085342,1739547039801,-595.65875474,0.00013698,2]
[353085344,1739547039810,-525.404896,0.00013699,2]
[353085345,1739547039820,-1406.282975,0.00013699,2]
[353085347,1739547039830,-150.17566469,0.00013699,2]
[353085349,1739547039839,-500.0,0.00013699,2]
[353085351,1739547039848,-420.0,0.00013699,2]
[353085353,1739547039858,-500.0,0.00013699,2]
[353085355,1739547039868,-410.63200008,0.00013699,2]
[353085357,1739547039882,-5400.98226387,0.000137,2]
[353085359,1739547039892,-157.75993763,0.000137,2]
[353085361,1739547039902,-157.75993763,0.000137,2]
[353085364,1739547039913,-157.75993763,0.000137,2]
[353085365,1739547039923,-157.75993763,0.000137,2]
[353085368,1739547039934,-157.75993763,0.000137,2]
[353085370,1739547039944,-157.75993763,0.000137,2]
[353085371,1739547039955,-157.75993763,0.000137,2]
[353085373,1739547039966,-157.75993763,0.000137,2]
[353085376,1739547039977,-157.75993763,0.000137,2]
[353085377,1739547039987,-157.75993763,0.000137,2]
[353085380,1739547039997,-157.75993763,0.000137,2]
[353085382,1739547040007,-157.75993763,0.000137,2]
[353085383,1739547040017,-153.0,0.000137,2]
[353085385,1739547040027,-157.75993763,0.000137,2]
[353085387,1739547040037,-157.75993763,0.000137,2]
[353085389,1739547040047,-157.75,0.000137,2]
[353085391,1739547040056,-276.07989085,0.000137,2]
[353085393,1739547040066,-276.07989085,0.000137,2]
[353085395,1739547040076,-276.07989085,0.000137,2]
[353085397,1739547040085,-276.07989085,0.000137,2]
[353085399,1739547040096,-276.07989085,0.000137,2]
[353085401,1739547040105,-276.07989085,0.000137,2]
[353085403,1739547040115,-276.07989085,0.000137,2]
[353085405,1739547040124,-276.07989085,0.000137,2]
[353085407,1739547040134,-276.07989085,0.000137,2]
[353085409,1739547040143,-276.07989085,0.000137,2]
[353085411,1739547040152,-276.07989085,0.000137,2]
[353085413,1739547040163,-276.07989085,0.000137,2]
[353085415,1739547040173,-276.07989085,0.000137,2]
[353085417,1739547040182,-276.07989085,0.000137,2]
[353085419,1739547040192,-276.07989085,0.000137,2]
[353085421,1739547040202,-276.07989085,0.000137,2]
[353085423,1739547040212,-276.07989085,0.000137,2]
[353085425,1739547040223,-276.07989085,0.000137,2]
[353085427,1739547040234,-276.07989085,0.000137,2]
[353085429,1739547040245,-276.07,0.000137,2]
[353085431,1739547040255,-270.29521963,0.000137,2]
[353085433,1739547040265,-270.29521963,0.000137,2]
[353085435,1739547040275,-270.29521963,0.000137,2]
[353085437,1739547040284,-270.29521963,0.000137,2]
[353085439,1739547040295,-270.29521963,0.000137,2]
[353085441,1739547040305,-270.29521963,0.000137,2]
[353085443,1739547040314,-270.29521963,0.000137,2]
[353085444,1739547040324,-270.29521963,0.000137,2]
[353085446,1739547040333,-270.29521963,0.000137,2]
[353085449,1739547040343,-270.29521963,0.000137,2]
[353085450,1739547040353,-270.29521963,0.000137,2]
[353085452,1739547040362,-270.29521963,0.000137,2]
[353085454,1739547040372,-270.29521963,0.000137,2]
[353085456,1739547040382,-270.29521963,0.000137,2]
[353085459,1739547040392,-270.29521963,0.000137,2]
[353085461,1739547040402,-270.29521963,0.000137,2]
[353085463,1739547040412,-270.29521963,0.000137,2]
[353085465,1739547040421,-270.29521963,0.000137,2]
[353085467,1739547040431,-270.29521963,0.000137,2]
[353085469,1739547040441,-270.29,0.000137,2]
[353085471,1739547040450,-630.6888458,0.000137,2]
[353085473,1739547040461,-630.6888458,0.000137,2]
[353085475,1739547040471,-630.6888458,0.000137,2]
[353085477,1739547040486,-630.6888458,0.000137,2]
[353085479,1739547040496,-630.6888458,0.000137,2]
[353085481,1739547040506,-630.6888458,0.000137,2]
[353085483,1739547040516,-630.6888458,0.000137,2]
[353085485,1739547040526,-630.6888458,0.000137,2]
[353085486,1739547040535,-630.6888458,0.000137,2]
[353085488,1739547040544,-630.6888458,0.000137,2]
[353085491,1739547040555,-630.6888458,0.000137,2]
[353085493,1739547040564,-630.6888458,0.000137,2]
[353085495,1739547040574,-630.6888458,0.000137,2]
[353085497,1739547040584,-630.6888458,0.000137,2]
[353085499,1739547040593,-630.6888458,0.000137,2]
[353085501,1739547040603,-630.6888458,0.000137,2]
[353085502,1739547040612,-630.6888458,0.000137,2]
[353085505,1739547040622,-630.6888458,0.000137,2]
[353085507,1739547040632,-630.6888458,0.000137,2]
[353085509,1739547040642,-630.68,0.000137,2]
[353085511,1739547040652,-156.66002795,0.000137,2]
[353085513,1739547040662,-156.66002795,0.000137,2]
[353085515,1739547040672,-156.66002795,0.000137,2]
[353085517,1739547040682,-156.66002795,0.000137,2]
[353085519,1739547040691,-156.66002795,0.000137,2]
[353085521,1739547040702,-156.66002795,0.000137,2]
[353085523,1739547040711,-156.66002795,0.000137,2]
[353085525,1739547040722,-156.66002795,0.000137,2]
[353085527,1739547040731,-156.66002795,0.000137,2]
[353085529,1739547040742,-156.66002795,0.000137,2]
[353085531,1739547040753,-156.66002795,0.000137,2]
[353085533,1739547040762,-156.66002795,0.000137,2]
[353085534,1739547040772,-156.66002795,0.000137,2]
[353085536,1739547040782,-156.66002795,0.000137,2]
[353085538,1739547040792,-156.66002795,0.000137,2]
[353085541,1739547040802,-156.66002795,0.000137,2]
[353085543,1739547040813,-156.66002795,0.000137,2]
[353085545,1739547040822,-156.66002795,0.000137,2]
[353085547,1739547040832,-156.66,0.000137,2]
[353085549,1739547040842,-347.26306195,0.000137,2]
[353085551,1739547040851,-347.26306195,0.000137,2]
[353085553,1739547040860,-347.26306195,0.000137,2]
[353085555,1739547040877,-347.26306195,0.000137,2]
[353085557,1739547040887,-347.26306195,0.000137,2]
[353085559,1739547040897,-347.26306195,0.000137,2]
[353085561,1739547040908,-347.26306195,0.000137,2]
[353085563,1739547040919,-347.26306195,0.000137,2]
[353085565,1739547040928,-347.26306195,0.000137,2]
[353085567,1739547040938,-347.26306195,0.000137,2]
[353085569,1739547040949,-347.26306195,0.000137,2]
[353085571,1739547040960,-347.26306195,0.000137,2]
[353085573,1739547040970,-347.26306195,0.000137,2]
[353085575,1739547040980,-347.26306195,0.000137,2]
[353085577,1739547040989,-347.26306195,0.000137,2]
[353085579,1739547040999,-347.26306195,0.000137,2]
[353085581,1739547041009,-347.26306195,0.000137,2]
[353085583,1739547041019,-347.26306195,0.000137,2]
[353085585,1739547041028,-347.26306195,0.000137,2]
[353085587,1739547041039,-347.26,0.000137,2]
[353085589,1739547041048,-1420.55364761,0.000137,2]
[353085591,1739547041058,-500.0,0.00013773,2]
[353085593,1739547041068,-500.0,0.00013773,2]
[353085595,1739547041077,-500.0,0.00013773,2]
[353085597,1739547041087,-500.0,0.00013773,2]
[353085599,1739547041096,-507.88802541,0.00013773,2]
[353085601,1739547041106,-500.0,0.00013773,2]
[353085603,1739547041115,-396.08985287,0.0001378,2]
[353085605,1739547041125,-500.0,0.0001378,2]
[353085607,1739547041135,-505.07339497,0.0001378,2]
[353085609,1739547041145,-500.0,0.0001378,2]
[353085611,1739547041154,-500.0,0.0001378,2]
[353085613,1739547041164,-641.92,0.0001378,2]
[353085615,1739547041174,-500.0,0.0001378,2]
[353085617,1739547041184,-500.0,0.0001378,2]
[353085619,1739547041195,-624.21105461,0.0001378,2]
[353085621,1739547041205,-500.0,0.0001378,2]
[353085623,1739547041215,-329.89469285,0.0001378,2]
[353085625,1739547041225,-666.01,0.0001378,2]
[353085627,1739547041235,-501.01678089,0.0001378,2]
[353085629,1739547041244,-500.0,0.0001378,2]
[353085631,1739547041254,-500.0,0.0001378,2]
[353085633,1739547041263,-500.0,0.0001378,2]
[353085635,1739547041273,-500.0,0.0001378,2]
[353085637,1739547041283,-860.7,0.0001378,2]
[353085639,1739547041293,-500.0,0.0001378,2]
[353085641,1739547041303,-500.0,0.0001378,2]
[353085643,1739547041313,-502.50574112,0.0001378,2]
[353085645,1739547041322,-500.0,0.0001378,2]
[353085647,1739547041333,-1374.05,0.0001378,2]
[353085649,1739547041343,-1662.72,0.0001378,2]
[353085651,1739547041352,-500.0,0.0001378,2]
[353085653,1739547041362,-534.28,0.0001378,2]
[353085655,1739547041372,-500.0,0.0001378,2]
[353085657,1739547041382,-1150.26,0.0001378,2]
[353085659,1739547041391,-500.0,0.0001378,2]
[353085661,1739547041401,-500.0,0.0001378,2]
[353085663,1739547041411,-500.0,0.0001378,2]
[353085666,1739547041421,-1488.22,0.0001378,2]
[353085668,1739547041431,-535.17,0.0001378,2]
[353085670,1739547041441,-501.78935841,0.0001378,2]
[353085672,1739547041451,-566.89,0.0001378,2]
[353085674,1739547041461,-500.0,0.0001378,2]
[353085675,1739547041471,-500.0,0.0001378,2]
[353085678,1739547041481,-500.0,0.0001378,2]
[353085680,1739547041490,-500.0,0.0001378,2]
[353085681,1739547041499,-839.84391647,0.0001378,2]
[353085697,1739547041634,-270.18608353,0.0001378,2]
[353085699,1739547041644,-500.0,0.0001378,2]
[353085701,1739547041654,-500.0,0.0001378,2]
[353085703,1739547041663,-502.83772679,0.0001378,2]
[353085705,1739547041673,-500.0,0.0001378,2]
[353085707,1739547041682,-582.36,0.0001378,2]
[353085708,1739547041691,-500.0,0.0001378,2]
[353085710,1739547041701,-500.0,0.0001378,2]
[353085712,1739547041710,-642.84892096,0.0001378,2]
[353085714,1739547041720,-1271.34,0.0001378,2]
[353085716,1739547041729,-500.0,0.0001378,2]
[353085719,1739547041739,-314.91864897,0.0001378,2]
[353085721,1739547041749,-1289.18,0.0001378,2]
[353085723,1739547041759,-515.09,0.0001378,2]
[353085725,1739547041768,-3441.1,0.0001378,2]
[353085727,1739547041778,-500.0,0.0001378,2]
[353085729,1739547041787,-500.0,0.0001378,2]
[353085731,1739547041797,-500.0,0.0001378,2]
[353085733,1739547041806,-500.0,0.0001378,2]
[353085735,1739547041815,-6725.15,0.0001378,2]
[353085736,1739547041825,-571.08,0.0001378,2]
[353085738,1739547041834,-11760.87,0.0001378,2]
[353085741,1739547041844,-500.0,0.0001378,2]
[353085743,1739547041853,-500.0,0.0001378,2]
[353085745,1739547041863,-524.62934172,0.0001378,2]
[353085746,1739547041872,-1123.46,0.0001378,2]
[353085748,1739547041885,-500.0,0.0001378,2]
[353085750,1739547041895,-639.53,0.0001378,2]
[353085752,1739547041904,-2123.39,0.0001378,2]
[353085754,1739547041913,-500.0,0.0001378,2]
[353085756,1739547041924,-3364.48,0.0001378,2]
[353085758,1739547041933,-1029.82,0.0001378,2]
[353085760,1739547041943,-1000.0,0.0001378,2]
[353085762,1739547041954,-1132.28,0.0001378,2]
[353085764,1739547041963,-1533.97,0.0001378,2]
[353085781,1739547042127,-500.0,0.0001378,2]